fUST/lending_fUST_20240124
["ID","MTS","AMOUNT","RATE_DAILY","PERIOD"]
[312605753,1706067050443,-2637.76,0.0004,7]
[312605754,1706067050453,-500.0,0.0004,7]
[312605755,1706067050463,-2585.0,0.0004,7]
[312605756,1706067050472,-750.71,0.0004,7]
[312605757,1706067050482,-500.0,0.0004,7]
[312605758,1706067050491,-505.94322014,0.0004,7]
[312605759,1706067050501,-1030.98,0.0004,7]
[312605760,1706067050510,-500.0,0.0004,7]
[312605761,1706067050520,-500.0,0.00040272,7]
[312605762,1706067050529,-500.0,0.00040272,7]
[312605763,1706067050539,-500.0,0.00040272,7]
[312605764,1706067050549,-416.82906062,0.00040272,30]
[312605765,1706067050558,-513.38689539,0.00040272,30]
[312605766,1706067050568,-383.88250954,0.00040272,30]
[312605767,1706067050578,-459.683114,0.00040273,2]
[312605768,1706067050587,-459.683114,0.00040273,2]
[312605769,1706067050597,-459.683114,0.00040273,2]
[312605770,1706067050608,-459.683114,0.00040273,2]
[312605771,1706067050618,-151.0,0.00040273,2]
[312605772,1706067050627,-301.665393,0.00040273,2]
[312605773,1706067050636,-449.546554,0.00040273,2]
[312605774,1706067050646,-449.546554,0.00040273,2]
[312605775,1706067050655,-449.546554,0.00040273,2]
[312605776,1706067050665,-449.546554,0.00040273,2]
[312605777,1706067050674,-678.87,0.00040273,7]
[312605778,1706067050683,-500.0,0.00040273,7]
[312605779,1706067050693,-500.0,0.00040273,7]
[312605780,1706067050702,-510.10966332,0.00040273,7]
[312605781,1706067050711,-500.0,0.00040273,7]
[312605782,1706067050720,-500.0,0.00040273,7]
[312605783,1706067050730,-558.8,0.00040273,7]
[312605784,1706067050740,-500.0,0.00040273,7]
[312605785,1706067050749,-500.0,0.00040273,7]
[312605786,1706067050758,-500.0,0.00040273,7]
[312605787,1706067050767,-682.71,0.00040273,7]
[312605788,1706067050777,-500.0,0.00040273,7]
[312605789,1706067050786,-500.0,0.00040273,7]
[312605790,1706067050795,-802.46,0.00040273,7]
[312605791,1706067050805,-500.0,0.00040273,2]
[312605792,1706067050814,-500.0,0.00040273,7]
[312605793,1706067050823,-500.0,0.00040273,7]
[312605794,1706067050833,-503.51,0.00040273,7]
[312605795,1706067050842,-500.0,0.00040273,7]
[312605796,1706067050851,-670.06,0.00040273,7]
[312605797,1706067050861,-500.0,0.00040273,7]
[312605798,1706067050870,-500.0,0.00040273,7]
[312605799,1706067050879,-500.0,0.00040273,7]
[312605800,1706067050889,-500.0,0.00040273,7]
[312605801,1706067050898,-500.0,0.00040273,7]
[312605802,1706067050907,-500.0,0.00040273,7]
[312605803,1706067050917,-500.0,0.00040273,7]
[312605804,1706067050926,-500.0,0.00040273,7]
[312605805,1706067050936,-288.03846527,0.00040273,7]
[312605806,1706067050946,-500.0,0.00040273,7]
[312605807,1706067050955,-1168.36,0.00040273,7]
[312605808,1706067050965,-500.0,0.00040273,7]
[312605809,1706067050974,-500.0,0.00040273,7]
[312605810,1706067050984,-500.0,0.00040273,7]
[312605811,1706067050994,-500.0,0.00040273,7]
[312605812,1706067051004,-565.25,0.00040273,7]
[312605813,1706067051013,-500.0,0.00040273,7]
[312605814,1706067051024,-500.0,0.00040273,7]
[312605815,1706067051034,-500.0,0.00040273,7]
[312605816,1706067051044,-500.0,0.00040273,7]
[312605817,1706067051053,-525.59,0.00040273,7]
[312605818,1706067051063,-500.0,0.00040273,7]
[312605819,1706067051074,-269.16421105,0.00040273,7]
[312605820,1706067051084,-1004.25,0.00040273,2]
[312605821,1706067051092,-500.0,0.00040273,7]
[312605822,1706067051103,-500.0,0.00040273,7]
[312605823,1706067051112,-809.15,0.00040273,7]
[312605824,1706067051121,-743.08,0.00040273,7]
[312605825,1706067051131,-500.0,0.00040273,7]
[312605826,1706067051140,-663.9,0.00040273,7]
[312605827,1706067051149,-500.0,0.00040273,7]
[312605828,1706067051161,-555.1,0.00040273,7]
[312605829,1706067051170,-500.0,0.00040273,7]
[312605830,1706067051180,-641.94,0.00040273,7]
[312605831,1706067051189,-500.0,0.00040273,7]
[312605832,1706067051198,-507.31,0.00040273,7]
[312605833,1706067051207,-546.43,0.00040273,7]
[312605834,1706067051215,-500.0,0.00040273,7]
[312605835,1706067051223,-567.46,0.00040273,7]
[312605836,1706067051232,-2049.46,0.00040273,7]
[312605837,1706067051240,-500.0,0.00040273,7]
[312605838,1706067051251,-668.98,0.00040273,7]
[312605839,1706067051260,-1180.38,0.00040273,7]
[312605840,1706067051269,-500.0,0.00040273,7]
[312605841,1706067051278,-778.04,0.00040273,7]
[312605842,1706067051287,-2732.86,0.00040273,7]
[312605843,1706067051296,-1021.45,0.00040273,7]
[312605844,1706067051305,-500.0,0.00040273,7]
[312605845,1706067051315,-1274.62,0.00040273,7]
[312605846,1706067051324,-522.52,0.00040273,7]
[312605847,1706067051334,-500.0,0.00040273,7]
[312605848,1706067051343,-500.0,0.00040273,7]
[312605849,1706067051352,-500.0,0.00040273,7]
[312605850,1706067051361,-749.04,0.00040273,7]
[312605851,1706067051371,-3177.6,0.00040273,7]
[312605852,1706067051380,-500.0,0.00040273,7]
[312605853,1706067051389,-500.0,0.00040273,7]
[312605854,1706067051398,-500.0,0.00040273,7]
[312605855,1706067051408,-2432.01,0.00040273,7]
[312605856,1706067051417,-1000.0,0.00040273,2]
[312605857,1706067051427,-500.0,0.00040273,7]
[312605858,1706067051436,-1430.82,0.00040273,7]
[312605859,1706067051446,-2099.51,0.00040273,7]
[312605860,1706067051455,-500.0,0.00040273,7]
[312605861,1706067051465,-1047.83,0.00040273,7]
[312605862,1706067051475,-2449.99,0.00040273,7]
[312605863,1706067051484,-500.0,0.00040273,7]
[312605864,1706067051494,-7512.82,0.00040273,7]
[312605865,1706067051503,-18915.05,0.00040273,7]
[312605866,1706067051513,-846.31,0.00040273,7]
[312605867,1706067051522,-510.06,0.00040273,7]
[312605868,1706067051531,-1013.0,0.00040273,7]
[312605869,1706067051540,-562.25,0.00040273,7]
[312605870,1706067051549,-1946.07,0.00040273,7]
[312605871,1706067051558,-524.38,0.00040273,7]
[312605872,1706067051568,-500.0,0.00040273,7]
[312605873,1706067051578,-534.42,0.00040273,7]
[312605874,1706067051587,-500.0,0.00040273,7]
[312605875,1706067051596,-500.0,0.00040273,7]
[312605876,1706067051606,-1252.12,0.00040273,7]
[312605877,1706067051615,-500.0,0.00040273,7]
[312605878,1706067051624,-500.0,0.00040273,7]
[312605879,1706067051634,-666.87,0.00040273,7]
[312605880,1706067051643,-649.53,0.00040273,7]
[312605881,1706067051653,-1237.52,0.00040273,7]
[312605882,1706067051662,-500.0,0.00040273,7]
[312605883,1706067051672,-500.0,0.00040273,7]
[312605884,1706067051682,-547.43,0.00040273,7]
[312605885,1706067051691,-500.0,0.00040273,7]
[312605886,1706067051701,-1006.41,0.00040273,7]
[312605887,1706067051710,-2637.76,0.00040273,7]
[312605888,1706067051720,-500.0,0.00040273,7]
[312605889,1706067051730,-2585.0,0.00040273,7]
[312605890,1706067051739,-750.71,0.00040273,7]
[312605891,1706067051748,-500.0,0.00040273,7]
[312605892,1706067051757,-1030.98,0.00040273,7]
[312605893,1706067051766,-500.0,0.00040273,7]
[312605894,1706067051775,-163.1461608,0.00040301,30]
[312605895,1706067051785,-163.1461608,0.00040342,30]
[312605896,1706067051794,-155.0,0.0004037,2]
[312605897,1706067051803,-156.05666548,0.00040392,30]
[312605898,1706067051812,-156.05666548,0.00040492,30]
[312605899,1706067051822,-405.66,0.00040499,2]
[312605900,1706067051831,-405.66,0.00040499,2]
[312605901,1706067051840,-405.66,0.00040499,2]
[312605902,1706067051850,-405.66,0.00040499,2]
[312605903,1706067051859,-405.66,0.00040499,2]
[312605904,1706067051868,-359.56963126,0.00040499,7]
[312605905,1706067051878,-459.683114,0.000405,2]
[312605906,1706067051887,-459.683114,0.000405,2]
[312605907,1706067051896,-449.546554,0.000405,2]
[312605908,1706067051905,-449.546554,0.000405,2]
[312605909,1706067051914,-100000.0,0.000405,30]
[312605910,1706067051924,-678.87,0.00040547,7]
[312605911,1706067051933,-500.0,0.00040547,7]
[312605912,1706067051941,-500.0,0.00040547,7]
[312605913,1706067051950,-461.4438459,0.00040547,7]
[312605914,1706067051960,-500.0,0.00040547,7]
[312605915,1706067051968,-558.8,0.00040547,7]
[312605916,1706067051978,-500.0,0.00040547,7]
[312605917,1706067051988,-500.0,0.00040547,7]
[312605918,1706067051997,-500.0,0.00040547,7]
[312605919,1706067052006,-682.71,0.00040547,7]
[312605920,1706067052016,-347.72654129,0.00040547,7]
[312605921,1706067052025,-500.0,0.00040547,7]
[312605922,1706067052034,-802.46,0.00040547,7]
[312605923,1706067052045,-500.0,0.00040547,2]
[312605924,1706067052054,-335.41432384,0.00040547,7]
[312605925,1706067052064,-500.0,0.00040547,7]
[312605926,1706067052076,-503.51,0.00040547,7]
[312605927,1706067052085,-500.0,0.00040547,7]
[312605928,1706067052095,-670.06,0.00040547,7]
[312605929,1706067052105,-500.0,0.00040547,7]
[312605930,1706067052115,-500.0,0.00040547,7]
[312605931,1706067052124,-500.0,0.00040547,7]
[312605932,1706067052133,-500.0,0.00040547,7]
[312605933,1706067052142,-500.0,0.00040547,7]
[312605934,1706067052153,-500.0,0.00040547,7]
[312605935,1706067052162,-500.0,0.00040547,7]
[312605936,1706067052171,-500.0,0.00040547,7]
[312605937,1706067052180,-500.0,0.00040547,7]
[312605938,1706067052189,-1168.36,0.00040547,7]
[312605939,1706067052198,-500.0,0.00040547,7]
[312605940,1706067052207,-500.0,0.00040547,7]
[312605941,1706067052216,-500.0,0.00040547,7]
[312605942,1706067052226,-500.0,0.00040547,7]
[312605943,1706067052235,-565.25,0.00040547,7]
[312605944,1706067052244,-500.0,0.00040547,7]
[312605945,1706067052254,-500.0,0.00040547,7]
[312605946,1706067052263,-500.0,0.00040547,7]
[312605947,1706067052272,-570.34570553,0.00040547,7]
[312605948,1706067052281,-525.59,0.00040547,7]
[312605949,1706067052290,-500.0,0.00040547,7]
[312605950,1706067052299,-1004.25,0.00040547,2]
[312605951,1706067052308,-500.0,0.00040547,7]
[312605952,1706067052318,-500.0,0.00040547,7]
[312605953,1706067052327,-809.15,0.00040547,7]
[312605954,1706067052336,-743.08,0.00040547,7]
[312605955,1706067052345,-500.0,0.00040547,7]
[312605956,1706067052355,-663.9,0.00040547,7]
[312605957,1706067052365,-500.0,0.00040547,7]
[312605958,1706067052374,-555.1,0.00040547,7]
[312605959,1706067052384,-500.0,0.00040547,7]
[312605960,1706067052393,-641.94,0.00040547,7]
[312605961,1706067052403,-500.0,0.00040547,7]
[312605962,1706067052412,-507.31,0.00040547,7]
[312605963,1706067052421,-546.43,0.00040547,7]
[312605964,1706067052430,-500.0,0.00040547,7]
[312605965,1706067052440,-567.46,0.00040547,7]
[312605966,1706067052449,-2049.46,0.00040547,7]
[312605967,1706067052458,-500.0,0.00040547,7]
[312605968,1706067052468,-668.98,0.00040547,7]
[312605969,1706067052477,-1180.38,0.00040547,7]
[312605970,1706067052487,-500.0,0.00040547,7]
[312605971,1706067052497,-778.04,0.00040547,7]
[312605972,1706067052506,-2732.86,0.00040547,7]
[312605973,1706067052516,-1021.45,0.00040547,7]
[312605974,1706067052526,-500.0,0.00040547,7]
[312605975,1706067052535,-1274.62,0.00040547,7]
[312605976,1706067052545,-522.52,0.00040547,7]
[312605977,1706067052554,-500.0,0.00040547,7]
[312605978,1706067052563,-500.0,0.00040547,7]
[312605979,1706067052573,-500.0,0.00040547,7]
[312605980,1706067052582,-749.04,0.00040547,7]
[312605981,1706067052591,-500.0,0.00040547,7]
[312605982,1706067052601,-3177.6,0.00040547,7]
[312605983,1706067052610,-162.77044321,0.00040547,7]
[312605984,1706067052619,-500.0,0.00040547,7]
[312605985,1706067052628,-2432.01,0.00040547,7]
[312605986,1706067052637,-1000.0,0.00040547,2]
[312605987,1706067052646,-500.0,0.00040547,7]
[312605988,1706067052655,-1430.82,0.00040547,7]
[312605989,1706067052665,-2099.51,0.00040547,7]
[312605990,1706067052674,-500.0,0.00040547,7]
[312605991,1706067052683,-1047.83,0.00040547,7]
[312605992,1706067052692,-2449.99,0.00040547,7]
[312605993,1706067052701,-500.0,0.00040547,7]
[312605994,1706067052709,-7512.82,0.00040547,7]
[312605995,1706067052719,-18915.05,0.00040547,7]
[312605996,1706067052728,-846.31,0.00040547,7]
[312605997,1706067052738,-510.06,0.00040547,7]
[312605998,1706067052747,-1013.0,0.00040547,7]
[312605999,1706067052758,-562.25,0.00040547,7]
[312606000,1706067052767,-1946.07,0.00040547,7]
[312606001,1706067052777,-524.38,0.00040547,7]
[312606002,1706067052786,-500.0,0.00040547,7]
[312606003,1706067052795,-534.42,0.00040547,7]
[312606004,1706067052804,-500.0,0.00040547,7]
[312606005,1706067052813,-635.4674161,0.00040547,7]
[312606006,1706067052822,-1252.12,0.00040547,7]
[312606007,1706067052831,-500.0,0.00040547,7]
[312606008,1706067052840,-500.0,0.00040547,7]
[312606009,1706067052849,-666.87,0.00040547,7]
[312606010,1706067052859,-649.53,0.00040547,7]
[312606011,1706067052868,-1237.52,0.00040547,7]
[312606012,1706067052877,-500.0,0.00040547,7]
[312606013,1706067052886,-500.0,0.00040547,7]
[312606014,1706067052895,-547.43,0.00040547,7]
[312606015,1706067052904,-500.0,0.00040547,7]
[312606016,1706067052913,-1006.41,0.00040547,7]
[312606017,1706067052922,-2637.76,0.00040547,7]
[312606018,1706067052931,-500.0,0.00040547,7]
[312606019,1706067052940,-2585.0,0.00040547,7]
[312606020,1706067052950,-750.71,0.00040547,7]
[312606021,1706067052959,-500.0,0.00040547,7]
[312606022,1706067052968,-1030.98,0.00040547,7]
[312606023,1706067052977,-500.0,0.00040547,7]
[312606024,1706067052986,-459.683114,0.00040547,2]
[312606025,1706067052995,-459.683114,0.00040547,2]
[312606026,1706067053004,-449.546554,0.00040547,2]
[312606027,1706067053013,-449.546554,0.00040547,2]
[312606028,1706067053022,-153.90070132,0.000407,120]
[312606029,1706067053032,-151.89300709,0.00040795,2]
[312606030,1706067053041,-678.87,0.00040821,31]
[312606031,1706067053050,-500.0,0.00040821,31]
[312606032,1706067053059,-500.0,0.00040821,31]
[312606033,1706067053071,-500.0,0.00040821,7]
[312606034,1706067053083,-558.8,0.00040821,31]
[312606035,1706067053092,-500.0,0.00040821,31]
[312606036,1706067053100,-270.15569955,0.00040821,31]
[312606037,1706067053111,-500.0,0.00040821,31]
[312606038,1706067053120,-682.71,0.00040821,31]
[312606039,1706067053226,-500.0,0.00040821,31]
[312606040,1706067053237,-802.46,0.00040821,31]
[312606041,1706067053246,-500.0,0.00040821,2]
[312606042,1706067053256,-500.0,0.00040821,31]
[312606043,1706067053265,-503.51,0.00040821,31]
[312606044,1706067053274,-500.0,0.00040821,31]
[312606045,1706067053283,-670.06,0.00040821,31]
[312606046,1706067053293,-500.0,0.00040821,31]
[312606047,1706067053302,-500.0,0.00040821,31]
[312606048,1706067053311,-500.0,0.00040821,31]
[312606049,1706067053320,-500.0,0.00040821,31]
[312606050,1706067053330,-500.0,0.00040821,31]
[312606051,1706067053339,-500.0,0.00040821,31]
[312606052,1706067053348,-500.0,0.00040821,31]
[312606053,1706067053358,-500.0,0.00040821,31]
[312606054,1706067053368,-503.3895093,0.00040821,31]
[312606055,1706067053377,-1168.36,0.00040821,31]
[312606056,1706067053387,-558.56044402,0.00040821,31]
[312606057,1706067053396,-500.0,0.00040821,31]
[312606058,1706067053405,-500.0,0.00040821,31]
[312606059,1706067053415,-500.0,0.00040821,31]
[312606060,1706067053424,-565.25,0.00040821,31]
[312606061,1706067053434,-500.0,0.00040821,31]
[312606062,1706067053444,-500.0,0.00040821,31]
[312606063,1706067053454,-500.0,0.00040821,31]
[312606064,1706067053464,-525.59,0.00040821,31]
[312606065,1706067053473,-500.0,0.00040821,31]
[312606066,1706067053483,-1004.25,0.00040821,2]
[312606067,1706067053492,-500.0,0.00040821,31]
[312606068,1706067053502,-500.0,0.00040821,20]
[312606069,1706067053511,-809.15,0.00040821,31]
[312606070,1706067053521,-743.08,0.00040821,31]
[312606071,1706067053530,-442.09285624,0.00040821,31]
[312606072,1706067053540,-663.9,0.00040821,31]
[312606073,1706067053549,-500.0,0.00040821,31]
[312606074,1706067053558,-555.1,0.00040821,31]
[312606075,1706067053568,-500.0,0.00040821,31]
[312606076,1706067053578,-641.94,0.00040821,31]
[312606077,1706067053587,-500.0,0.00040821,31]
[312606078,1706067053597,-507.31,0.00040821,31]
[312606079,1706067053607,-546.43,0.00040821,31]
[312606080,1706067053617,-500.0,0.00040821,31]
[312606081,1706067053627,-567.46,0.00040821,31]
[312606082,1706067053636,-2049.46,0.00040821,31]
[312606083,1706067053645,-500.0,0.00040821,31]
[312606084,1706067053655,-668.98,0.00040821,31]
[312606085,1706067053664,-1180.38,0.00040821,31]
[312606086,1706067053674,-500.0,0.00040821,31]
[312606087,1706067053683,-778.04,0.00040821,31]
[312606088,1706067053692,-2732.86,0.00040821,31]
[312606089,1706067053701,-1021.45,0.00040821,31]
[312606090,1706067053710,-500.0,0.00040821,31]
[312606091,1706067053719,-1274.62,0.00040821,31]
[312606092,1706067053728,-522.52,0.00040821,31]
[312606093,1706067053737,-500.0,0.00040821,31]
[312606094,1706067053746,-361.69906968,0.00040821,31]
[312606095,1706067053755,-500.0,0.00040821,31]
[312606096,1706067053765,-749.04,0.00040821,31]
[312606097,1706067053774,-500.0,0.00040821,31]
[312606098,1706067053782,-3177.6,0.00040821,31]
[312606099,1706067053792,-500.0,0.00040821,31]
[312606100,1706067053801,-2432.01,0.00040821,31]
[312606101,1706067053811,-1000.0,0.00040821,2]
[312606102,1706067053819,-500.0,0.00040821,31]
[312606103,1706067053829,-1430.82,0.00040821,31]
[312606104,1706067053838,-2099.51,0.00040821,31]
[312606105,1706067053847,-500.0,0.00040821,31]
[312606106,1706067053857,-1047.83,0.00040821,31]
[312606107,1706067053867,-2449.99,0.00040821,31]
[312606108,1706067053876,-483.5758326,0.00040821,31]
[312606109,1706067053885,-7512.82,0.00040821,31]
[312606110,1706067053895,-18915.05,0.00040821,14]
[312606111,1706067053904,-846.31,0.00040821,31]
[312606112,1706067053913,-510.06,0.00040821,31]
[312606113,1706067053923,-1013.0,0.00040821,31]
[312606114,1706067053932,-562.25,0.00040821,31]
[312606115,1706067053942,-1946.07,0.00040821,31]
[312606116,1706067053951,-524.38,0.00040821,31]
[312606117,1706067053960,-500.0,0.00040821,31]
[312606118,1706067053970,-534.42,0.00040821,31]
[312606119,1706067053979,-500.0,0.00040821,31]
[312606120,1706067053989,-1252.12,0.00040821,31]
[312606121,1706067053998,-500.0,0.00040821,31]
[312606122,1706067054008,-500.0,0.00040821,31]
[312606123,1706067054018,-666.87,0.00040821,31]
[312606124,1706067054027,-649.53,0.00040821,31]
[312606125,1706067054036,-1237.52,0.00040821,31]
[312606126,1706067054046,-500.0,0.00040821,31]
[312606127,1706067054055,-500.0,0.00040821,31]
[312606128,1706067054065,-547.43,0.00040821,31]
[312606129,1706067054079,-500.0,0.00040821,31]
[312606130,1706067054093,-1006.41,0.00040821,31]
[312606131,1706067054104,-2637.76,0.00040821,31]
[312606132,1706067054113,-500.0,0.00040821,31]
[312606133,1706067054123,-2585.0,0.00040821,31]
[312606134,1706067054133,-750.71,0.00040821,31]
[312606135,1706067054143,-500.0,0.00040821,31]
[312606136,1706067054152,-1030.98,0.00040821,31]
[312606137,1706067054161,-500.0,0.00040821,31]
[312606138,1706067054171,-459.683114,0.00040821,2]
[312606139,1706067054180,-459.683114,0.00040821,2]
[312606140,1706067054189,-459.683114,0.00040821,2]
[312606141,1706067054198,-459.683114,0.00040821,2]
[312606142,1706067054208,-449.546554,0.00040821,2]
[312606143,1706067054217,-449.546554,0.00040821,2]
[312606144,1706067054226,-449.546554,0.00040821,2]
[312606145,1706067054236,-449.546554,0.00040821,2]
[312606146,1706067054245,-158.1570697,0.0004083,30]
[312606147,1706067054254,-100000.0,0.00041,30]
[312606148,1706067054263,-459.683114,0.00041,2]
[312606149,1706067054273,-459.683114,0.00041,2]
[312606150,1706067054282,-449.546554,0.00041,2]
[312606151,1706067054291,-449.546562,0.00041,2]
[312606152,1706067054301,-160.0,0.00041082,3]
[312606153,1706067054310,-678.87,0.00041095,31]
[312606154,1706067054319,-500.0,0.00041095,31]
[312606155,1706067054328,-500.0,0.00041095,31]
[312606156,1706067054337,-500.0,0.00041095,7]
[312606157,1706067054347,-500.0,0.00041095,31]
[312606158,1706067054357,-558.8,0.00041095,31]
[312606159,1706067054366,-500.0,0.00041095,31]
[312606160,1706067054376,-500.0,0.00041095,7]
[312606161,1706067054385,-500.0,0.00041095,7]
[312606162,1706067054394,-500.0,0.00041095,7]
[312606163,1706067054414,-500.0,0.00041095,7]
[312606164,1706067054435,-500.0,0.00041095,31]
[312606165,1706067054458,-500.0,0.00041095,31]
[312606166,1706067054480,-682.71,0.00041095,31]
[312606167,1706067054506,-500.0,0.00041095,31]
[312606168,1706067054529,-500.0,0.00041095,2]
[312606169,1706067054553,-802.46,0.00041095,31]
[312606170,1706067054574,-500.0,0.00041095,2]
[312606171,1706067054595,-500.0,0.00041095,31]
[312606172,1706067054613,-503.51,0.00041095,31]
[312606173,1706067054622,-500.0,0.00041095,31]
[312606174,1706067054631,-670.06,0.00041095,31]
[312606175,1706067054641,-500.0,0.00041095,31]
[312606176,1706067054650,-500.0,0.00041095,31]
[312606177,1706067054659,-500.0,0.00041095,31]
[312606178,1706067054669,-500.0,0.00041095,31]
[312606179,1706067054678,-640.57112705,0.00041095,31]
[312606180,1706067054687,-500.0,0.00041095,31]
[312606181,1706067054697,-500.0,0.00041095,31]
[312606182,1706067054706,-500.0,0.00041095,31]
[312606183,1706067054715,-1168.36,0.00041095,31]
[312606184,1706067054725,-500.0,0.00041095,31]
[312606185,1706067054733,-580.26978786,0.00041095,31]
[312606186,1706067054743,-500.0,0.00041095,31]
[312606187,1706067054752,-565.25,0.00041095,31]
[312606188,1706067054761,-569.12724921,0.00041095,31]
[312606189,1706067054770,-500.0,0.00041095,31]
[312606190,1706067054779,-500.0,0.00041095,31]
[312606191,1706067054788,-525.59,0.00041095,31]
[312606192,1706067054797,-500.0,0.00041095,31]
[312606193,1706067054807,-1004.25,0.00041095,2]
[312606194,1706067054816,-576.79877463,0.00041095,31]
[312606195,1706067054825,-500.0,0.00041095,20]
[312606196,1706067054834,-809.15,0.00041095,31]
[312606197,1706067054842,-743.08,0.00041095,31]
[312606198,1706067054852,-663.9,0.00041095,31]
[312606199,1706067054861,-500.0,0.00041095,31]
[312606200,1706067054870,-555.1,0.00041095,31]
[312606201,1706067054879,-500.0,0.00041095,31]
[312606202,1706067054888,-641.94,0.00041095,31]
[312606203,1706067054897,-500.0,0.00041095,31]
[312606204,1706067054906,-507.31,0.00041095,31]
[312606205,1706067054916,-546.43,0.00041095,31]
[312606206,1706067054925,-500.0,0.00041095,31]
[312606207,1706067054934,-567.46,0.00041095,31]
[312606208,1706067054944,-2049.46,0.00041095,31]
[312606209,1706067054953,-500.0,0.00041095,31]
[312606210,1706067054961,-668.98,0.00041095,31]
[312606211,1706067054970,-1180.38,0.00041095,31]
[312606212,1706067054980,-500.0,0.00041095,31]
[312606213,1706067054989,-778.04,0.00041095,31]
[312606214,1706067054998,-2732.86,0.00041095,31]
[312606215,1706067055007,-1021.45,0.00041095,31]
[312606216,1706067055016,-500.0,0.00041095,31]
[312606217,1706067055025,-1274.62,0.00041095,31]
[312606218,1706067055034,-522.52,0.00041095,31]
[312606219,1706067055043,-500.0,0.00041095,31]
[312606220,1706067055052,-500.0,0.00041095,31]
[312606221,1706067055061,-749.04,0.00041095,31]
[312606222,1706067055072,-3177.6,0.00041095,31]
[312606223,1706067055083,-500.0,0.00041095,31]
[312606224,1706067055093,-500.0,0.00041095,31]
[312606225,1706067055102,-2432.01,0.00041095,31]
[312606226,1706067055111,-1000.0,0.00041095,2]
[312606227,1706067055121,-500.0,0.00041095,31]
[312606228,1706067055130,-1430.82,0.00041095,31]
[312606229,1706067055139,-2099.51,0.00041095,31]
[312606230,1706067055149,-500.0,0.00041095,31]
[312606231,1706067055160,-1047.83,0.00041095,31]
[312606232,1706067055169,-2449.99,0.00041095,31]
[312606233,1706067055178,-7512.82,0.00041095,31]
[312606234,1706067055187,-18915.05,0.00041095,14]
[312606235,1706067055197,-846.31,0.00041095,31]
[312606236,1706067055206,-510.06,0.00041095,31]
[312606237,1706067055214,-1013.0,0.00041095,31]
[312606238,1706067055223,-562.25,0.00041095,31]
[312606239,1706067055232,-1946.07,0.00041095,31]
[312606240,1706067055241,-524.38,0.00041095,31]
[312606241,1706067055274,-500.0,0.00041095,31]
[312606242,1706067055284,-534.42,0.00041095,31]
[312606243,1706067055293,-500.0,0.00041095,31]
[312606244,1706067055303,-1252.12,0.00041095,31]
[312606245,1706067055312,-500.0,0.00041095,31]
[312606246,1706067055321,-500.0,0.00041095,31]
[312606247,1706067055331,-666.87,0.00041095,31]
[312606248,1706067055340,-649.53,0.00041095,31]
[312606249,1706067055349,-1237.52,0.00041095,31]
[312606250,1706067055358,-500.0,0.00041095,31]
[312606251,1706067055367,-500.0,0.00041095,31]
[312606252,1706067055376,-547.43,0.00041095,31]